bitfinex/quotes_ETHUSD_20251006
["timestamp","ask_amount","ask_price","bid_price","bid_amount"]
[1759712590784,3.76622271,4494.2,4494.1,0.0088]
[1759712590988,5.73792083,4494.2,4494.1,0.0088]
[1759712594876,5.73792083,4494.2,4494.1,0.4391]
[1759712595472,0.57890633,4494.2,4494.1,0.4391]
[1759712595670,2.6672,4494.2,4494.1,0.4391]
[1759712596471,0.1112,4494.2,4494.1,0.4391]
[1759712596884,2.6692,4494.2,4494.1,0.4391]
[1759712597106,0.002,4494.2,4494.1,0.4391]
[1759712597306,2.6692,4494.2,4494.1,0.4391]
[1759712598378,2.6692,4494.2,4494.1,2.93066417]
[1759712598578,2.6692,4494.2,4494.1,0.70552455]
[1759712599206,2.6692,4494.2,4494.1,0.4391]
[1759712599708,2.6692,4494.2,4494.1,2.66423962]
[1759712600503,0.1132,4494.2,4494.1,2.66423962]
[1759712600869,0.4582,4494.2,4494.1,2.66423962]
[1759712601687,0.002,4494.2,4494.1,2.66423962]
[1759712601875,0.005,4494.2,4494.1,3.15541213]
[1759712603697,0.002,4494.2,4494.1,3.17766352]
[1759712605221,0.002,4494.2,4494.1,5.57766352]
[1759712605406,0.002,4494.2,4494.1,6.30021213]
[1759712605605,0.002,4494.2,4494.1,6.41141213]
[1759712606723,0.002,4495.1,4495.0,2.2246941]
[1759712607024,0.002,4495.1,4495.0,2.3358941]
[1759712607311,0.002,4495.1,4495.0,5.1661941]
[1759712607886,0.002,4495.1,4495.0,2.2246941]
[1759712610528,0.002,4495.1,4495.0,2.24694104]
[1759712610742,0.002,4495.1,4495.0,2.93411401]
[1759712613114,0.002,4495.1,4495.0,2.91186707]
[1759712615931,0.002,4495.1,4495.0,2.93411401]
[1759712616131,0.002,4495.1,4495.0,3.38676707]
[1759712617121,0.002,4495.1,4495.0,5.80901401]
[1759712617318,0.002,4495.1,4495.0,5.78676707]
[1759712618034,0.002,4495.1,4495.0,5.90085616]
[1759712618241,0.002,4495.1,4495.0,6.53445616]
[1759712619553,0.002,4495.1,4495.0,6.64565616]
[1759712621549,0.01,4496.9,4495.8,0.6336]
[1759712621760,0.01,4496.9,4496.0,2.4]
[1759712621920,0.01,4496.9,4496.1,2.99551636]
[1759712622116,0.01,4496.9,4496.6,2.2239025]
[1759712622853,0.01,4496.9,4496.8,2.22380359]
[1759712629089,0.4446,4496.9,4496.1,0.68447487]
[1759712629275,0.4346,4496.8,4496.6,2.22386463]
[1759712629479,0.4346,4496.7,4496.6,2.22386463]
[1759712630991,0.1212,4496.9,4496.6,2.22386463]
[1759712631361,0.5558,4496.9,4496.6,2.22386463]
[1759712632471,0.1212,4496.9,4496.8,2.22380359]
[1759712632682,0.1212,4496.9,4496.2,2.4]
[1759712632683,0.5558,4496.9,4496.2,2.4]
[1759712632876,0.5558,4496.9,4496.8,2.22380359]
[1759712633071,0.1212,4496.9,4496.8,2.22380359]
[1759712633277,0.01,4496.9,4496.8,2.22380359]
[1759712633475,0.4446,4496.9,4496.6,0.1112]
[1759712633706,0.5558,4496.9,4496.8,2.22380359]
[1759712634317,0.1212,4496.9,4496.8,2.22380359]
[1759712634606,0.01,4496.9,4496.8,2.99188787]
[1759712636677,0.4446,4496.9,4496.8,2.99188787]
[1759712637000,0.01,4496.9,4496.8,2.22380359]
[1759712638986,0.4446,4496.9,4496.8,2.22380359]
[1759712639193,0.01,4496.9,4496.8,2.22380359]
[1759712639719,1e-08,4496.9,4496.8,2.22380359]
[1759712639882,1e-08,4496.9,4496.8,5.12094162]
[1759712640092,1e-08,4496.9,4496.8,6.47272205]
[1759712641727,1e-08,4496.9,4496.8,7.21752205]
[1759712641933,0.002,4497.4,4497.0,0.6336]
[1759712642136,0.002,4497.4,4497.3,6.74130316]
[1759712642318,0.002,4497.4,4497.3,9.14130316]
[1759712642506,0.002,4497.4,4497.3,9.98342051]
[1759712644036,0.002,4498.1,4498.0,2.85681031]
[1759712644338,0.002,4498.1,4498.0,9.59014305]
[1759712644499,0.002,4498.1,4498.0,10.13844305]
[1759712644701,0.002,4498.1,4498.0,11.51246151]
[1759712645201,0.002,4498.1,4498.0,14.06346151]
[1759712646206,0.002,4498.1,4498.0,13.61427558]
[1759712647305,0.002,4498.1,4498.0,13.50307558]
[1759712649908,0.002,4498.1,4498.0,13.95186137]
[1759712651748,0.002,4499.5,4499.4,2.22251855]
[1759712651935,0.002,4499.5,4499.4,2.50076108]
[1759712652137,0.002,4499.5,4499.4,4.90076108]
[1759712652320,0.002,4499.5,4499.4,4.8785359]
[1759712653541,0.002,4499.5,4499.4,5.3156359]
[1759712653747,0.4463,4500.5,4499.5,2.4]
[1759712653912,0.4463,4500.5,4499.6,9.55535436]
[1759712654112,0.4463,4500.5,4499.6,9.97023017]
[1759712655339,0.4463,4500.5,4499.6,9.53313017]
[1759712656375,0.4483,4500.3,4499.6,9.53313017]
[1759712657519,0.4483,4500.3,4499.6,9.64433017]
[1759712657725,0.002,4500.3,4499.6,10.08143017]
[1759712657936,0.002,4500.3,4499.6,12.63043017]
[1759712658133,0.4463,4501.0,4500.5,2.22197533]
[1759712658336,0.4463,4501.0,4500.7,2.22187659]
[1759712658640,0.002,4501.3,4500.7,2.22187659]
[1759712658948,0.002,4501.3,4500.7,4.96933146]
[1759712659949,0.4463,4501.2,4500.7,4.96933146]
[1759712661152,0.002,4501.3,4500.7,4.96933146]
[1759712661653,0.4483,4501.3,4500.7,4.96933146]
[1759712662348,0.4483,4501.3,4500.7,5.40989433]
[1759712663420,0.002,4501.3,4500.7,5.40989433]
[1759712664263,0.4483,4501.3,4500.7,5.40989433]
[1759712664547,0.002,4501.3,4500.7,5.40989433]
[1759712665438,0.002,4501.3,4500.7,4.62187659]
[1759712665646,0.4483,4500.8,4500.7,4.62187659]
[1759712667449,0.002,4500.8,4500.7,4.62187659]
[1759712667655,0.002,4500.8,4500.7,8.5060234]
[1759712668045,0.002,4500.8,4500.7,8.6172234]
[1759712668461,0.002,4501.3,4500.7,8.6172234]
[1759712668666,1e-08,4502.4,4502.0,3.88414681]
[1759712668846,0.4463,4502.3,4502.2,2.22113633]
[1759712672782,1e-08,4502.4,4502.3,2.22108699]
[1759712672986,1e-08,4502.4,4502.3,2.24329785]
[1759712673282,1e-08,4502.4,4502.3,3.21256985]
[1759712673482,0.45940001,4502.4,4502.3,3.21256985]
[1759712673670,0.45940001,4502.4,4502.3,2.22108699]
[1759712674058,1e-08,4502.4,4502.3,2.22108699]
[1759712675560,0.45940001,4502.4,4502.3,2.22108699]
[1759712676180,1e-08,4502.4,4502.3,2.22108699]
[1759712676357,1e-08,4502.4,4502.3,3.22823127]
[1759712678579,1e-08,4502.4,4502.3,3.33943127]
[1759712678779,1e-08,4502.4,4502.3,3.36164213]
[1759712678986,1e-08,4502.4,4502.3,3.33943127]
[1759712679613,1e-08,4502.4,4502.3,5.88643127]
[1759712680815,0.45940001,4502.4,4502.3,3.33943127]
[1759712681009,0.45940001,4502.4,4499.8,2.22330562]
[1759712681010,0.45940001,4502.4,4501.6,3.22918335]
[1759712681173,0.1112,4502.1,4501.4,0.1112]
[1759712681374,0.4594,4502.0,4501.9,2.22127664]
[1759712681830,0.4594,4502.0,4501.4,0.1112]
[1759712682131,0.4594,4502.0,4501.8,2.2212866]
[1759712682317,0.4594,4501.9,4501.8,2.2212866]
[1759712682694,0.4594,4501.9,4501.8,2.22133368]
[1759712682926,0.4594,4501.9,4501.4,0.1112]
[1759712683133,0.4594,4501.9,4501.2,3.22918335]
[1759712683340,0.1112,4501.7,4501.2,2.22160855]
[1759712683544,0.4594,4501.6,4501.0,2.2217285]
[1759712683711,0.4594,4501.5,4500.9,3.22918335]
[1759712683913,0.4594,4501.4,4501.3,2.22156269]
[1759712684147,0.4594,4501.4,4500.8,0.1112]
[1759712684302,0.4594,4501.4,4499.1,2.34484817]
[1759712684303,0.1112,4501.3,4500.3,0.001]
[1759712684502,0.1112,4500.7,4500.6,2.22192596]
[1759712684817,0.4594,4501.4,4500.6,0.02221925]
[1759712685129,0.5706,4501.4,4501.3,2.22158043]
[1759712685319,0.1112,4501.4,4501.3,2.24379623]
[1759712685537,0.1112,4501.4,4501.3,3.01326006]
[1759712685913,0.5706,4501.4,4501.3,2.99104426]
[1759712686117,0.5706,4501.4,4501.3,2.22158043]
[1759712686715,0.1112,4501.4,4501.3,5.45076378]
[1759712687914,0.5706,4501.4,4501.3,5.45076378]
[1759712688111,0.1112,4501.4,4501.3,5.45076378]
[1759712688507,0.4594,4502.2,4502.0,2.22120829]
[1759712688722,0.1112,4502.0,4501.7,3.22918335]
[1759712688924,1e-08,4502.4,4501.9,3.22918335]
[1759712689261,1e-08,4502.4,4502.3,5.45027034]
[1759712689751,0.45940001,4502.4,4501.8,3.34038335]
[1759712689927,0.45940001,4502.4,4502.1,2.22117304]
[1759712690329,0.4594,4502.3,4502.2,2.22113633]
[1759712691227,0.4594,4502.3,4501.8,3.34038335]
[1759712691450,0.4594,4502.2,4502.1,2.22118566]
[1759712692345,0.4594,4502.2,4502.1,2.77734256]
[1759712692916,1e-08,4502.4,4501.8,3.34038335]
[1759712693118,0.4594,4502.3,4501.5,3.22918335]
[1759712693442,0.4594,4502.3,4502.2,2.22113633]
[1759712693839,0.5706,4502.3,4502.2,2.22113633]
[1759712694041,1e-08,4502.4,4502.3,2.22108699]
[1759712694247,1e-08,4502.4,4502.3,6.44175454]
[1759712695158,1e-08,4502.4,4502.3,7.01055454]
[1759712695951,1e-08,4502.4,4502.3,6.55295454]
[1759712696257,1e-08,4502.4,4502.3,7.01055454]
[1759712698161,1e-08,4502.4,4502.3,9.55555454]
[1759712698545,1e-08,4502.4,4502.3,9.09795454]
[1759712698947,1e-08,4502.4,4502.3,6.55295454]
[1759712699365,1e-08,4502.4,4502.3,3.32377119]
[1759712699636,0.45940001,4502.4,4502.3,2.24329785]
[1759712699835,0.45940001,4502.4,4502.3,2.22108699]
[1759712701336,1e-08,4502.4,4502.3,2.22108699]
[1759712701664,1e-08,4502.4,4502.3,2.24329785]
[1759712701866,1e-08,4502.4,4502.3,2.22108699]
[1759712702065,1e-08,4502.4,4502.3,2.99935181]
[1759712703262,0.44860001,4502.4,4502.3,2.22108699]
[1759712703669,1e-08,4502.4,4502.3,2.22108699]
[1759712704074,1e-08,4502.4,4502.3,2.24329785]
[1759712704649,1e-08,4502.4,4502.3,0.02221086]
[1759712704846,1e-08,4502.4,4501.8,0.1112]
[1759712704847,0.44860001,4502.4,4502.2,2.22112652]
[1759712705051,0.4486,4502.3,4501.9,2.22128391]
[1759712705280,1e-08,4502.4,4501.6,2.22143053]
[1759712705281,0.1112,4501.9,4501.6,2.22140845]
[1759712705487,0.4486,4502.3,4501.8,3.22918335]
[1759712705694,0.1112,4502.1,4501.8,5.45049312]
[1759712705888,0.4486,4502.0,4501.5,3.22918335]
[1759712706071,0.1112,4502.1,4501.5,3.22918335]
[1759712706270,2.54500001,4502.4,4501.3,0.1122]
[1759712706271,0.4486,4501.9,4501.6,0.001]
[1759712706581,0.1112,4501.8,4501.7,2.22134253]
[1759712706988,0.5598,4501.8,4501.7,2.22134253]
[1759712707279,0.1112,4501.8,4501.7,2.22134253]
[1759712708883,0.1112,4501.8,4501.7,5.45052588]
[1759712709491,1e-08,4502.4,4501.7,5.45052588]
[1759712709711,1e-08,4502.4,4502.3,2.22108699]
[1759712710213,0.11120001,4502.4,4502.3,2.22108699]
[1759712710360,0.11120001,4502.4,4502.3,5.45027034]
[1759712710683,0.55980001,4502.4,4501.7,3.34038335]
[1759712711002,0.1112,4502.1,4501.8,2.22132159]
[1759712711170,0.1112,4502.1,4502.0,2.221235]
[1759712711366,0.1112,4502.1,4501.6,0.001]
[1759712711577,0.1112,4502.1,4502.0,2.221235]
[1759712711776,0.5598,4502.1,4502.0,2.221235]
[1759712712767,0.5598,4502.1,4501.7,2.22137425]
[1759712712962,0.1112,4502.1,4501.7,2.22137425]
[1759712713165,0.4486,4502.0,4501.8,2.22133368]
[1759712713366,0.1112,4502.1,4502.0,2.221235]
[1759712713903,0.5598,4502.1,4502.0,2.221235]
[1759712714402,0.5598,4502.1,4501.6,2.22242169]
[1759712714600,0.4486,4502.0,4501.7,2.22134378]
[1759712714802,0.4486,4501.9,4501.6,0.001]
[1759712714993,0.1112,4501.7,4501.6,0.001]
[1759712715328,0.1112,4501.7,4501.6,2.22243237]
[1759712716289,0.5598,4501.7,4501.6,0.001]
[1759712716804,0.1112,4501.7,4501.6,2.22243237]
[1759712719395,1e-08,4502.4,4502.3,2.22108699]
[1759712719596,1e-08,4502.4,4502.3,5.45027034]
[1759712719798,0.11120001,4502.4,4502.3,5.45027034]
[1759712720002,0.11120001,4502.4,4502.3,2.22108699]
[1759712720745,0.55980001,4502.4,4501.7,3.22918335]
[1759712720948,0.4486,4502.3,4501.4,3.34038335]
[1759712721095,0.4486,4502.3,4502.0,2.22122921]
[1759712721295,0.4486,4502.2,4501.8,2.22133368]
[1759712721525,0.1112,4502.0,4501.8,2.22133368]
[1759712721923,0.1112,4502.0,4501.4,3.34038335]
[1759712722144,0.4486,4501.9,4501.7,2.22138303]
[1759712722326,1e-08,4502.4,4501.9,2.22125556]
[1759712722510,1e-08,4502.4,4501.8,2.2213285]
[1759712722511,0.1112,4502.0,4501.8,2.2213285]
[1759712722703,0.1112,4502.0,4501.9,2.22128434]
[1759712722902,0.4486,4502.0,4501.7,2.2213353]
[1759712723128,0.1112,4501.7,4501.6,0.001]
[1759712723813,0.1112,4501.7,4501.6,2.22243237]
[1759712724424,0.4486,4502.3,4501.6,3.23018335]
[1759712724623,0.1112,4501.9,4501.7,2.22138303]
[1759712724826,0.1112,4501.9,4501.6,2.22240737]
[1759712725148,0.1112,4501.9,4501.8,2.22133368]
[1759712727942,0.1112,4501.9,4501.6,0.001]
[1759712728148,0.1112,4501.9,4501.8,2.22133368]
[1759712731444,2.6552,4501.9,4501.8,2.22133368]
[1759712731610,0.1112,4501.9,4501.8,2.22133368]
[1759712731810,0.1112,4501.9,4501.8,3.14675939]
[1759712731811,1e-08,4501.9,4501.8,3.14675939]
[1759712732046,1e-08,4502.5,4502.4,2.22103766]
[1759712732249,1e-08,4502.5,4502.4,6.66549084]
[1759712732412,1e-08,4502.5,4502.4,6.64328047]
[1759712732932,1e-08,4502.5,4502.4,9.04328047]
[1759712733146,1e-08,4502.5,4502.4,10.16971963]
[1759712733445,0.012,4502.9,4502.4,10.16971963]
[1759712733446,0.002,4503.4,4503.3,2.22059378]
[1759712733651,0.002,4503.4,4503.3,2.24279971]
[1759712733836,0.01,4503.9,4503.4,2.22054447]
[1759712734152,0.01,4504.9,4504.8,2.21985437]
[1759712736468,0.01,4504.9,4504.2,3.87574281]
[1759712736668,0.01,4504.9,4504.8,2.21985437]
[1759712736962,0.01,4504.9,4504.3,3.87574281]
[1759712737267,0.01,4504.9,4504.8,2.21985437]
[1759712738767,0.01,4504.9,4504.6,0.1112]
[1759712739066,0.464,4504.8,4504.7,2.21986905]
[1759712739368,0.1212,4504.9,4504.5,2.22000222]
[1759712739541,0.1212,4504.9,4504.3,0.1112]
[1759712739726,0.1212,4504.9,4504.8,2.21985437]
[1759712740421,0.012,4504.9,4504.8,2.21985437]
[1759712740962,1e-08,4504.9,4504.8,6.59365704]
[1759712741166,1e-08,4504.9,4504.8,7.02325704]
[1759712741937,1e-08,4504.9,4504.8,9.56625704]
[1759712743442,1e-08,4504.9,4504.8,11.96625704]
[1759712743758,0.002,4505.4,4505.3,2.21960801]
[1759712743953,0.002,4505.4,4505.3,9.17928009]
[1759712744274,0.002,4505.4,4505.3,9.65268009]
[1759712745172,0.002,4505.4,4505.3,2.90353728]
[1759712745467,0.002,4505.4,4505.3,2.21960801]
[1759712746034,0.4614,4505.4,4505.3,2.21960801]
[1759712746272,0.002,4505.4,4505.3,2.21960801]
[1759712746581,0.4614,4505.4,4505.3,2.21960801]
[1759712746774,0.002,4505.4,4505.3,2.21960801]
[1759712748239,0.4614,4505.4,4504.9,2.4]
[1759712748439,0.002,4505.4,4505.3,2.21960801]
[1759712749287,0.4614,4505.4,4505.3,2.21960801]
[1759712749480,0.002,4505.4,4505.3,2.21960801]
[1759712749862,0.4614,4505.4,4505.1,2.219687]
[1759712750062,0.4614,4505.4,4505.2,0.02219657]
[1759712750354,0.002,4505.4,4505.3,2.21960801]
[1759712750590,0.002,4505.4,4505.2,0.02219657]
[1759712750775,0.4614,4505.4,4505.1,2.21970003]
[1759712751103,0.002,4505.4,4505.3,2.21960801]
[1759712753557,0.1132,4505.4,4505.3,2.21960801]
[1759712754281,0.002,4505.4,4505.3,2.21960801]
[1759712754684,0.002,4505.4,4504.8,2.4]
[1759712754862,0.002,4505.4,4504.7,0.1112]
[1759712754863,0.4594,4505.3,4504.7,0.1112]
[1759712755063,0.1112,4505.2,4504.7,0.1112]
[1759712755400,0.4594,4505.1,4505.0,2.21975582]
[1759712755689,0.4594,4505.1,4504.7,0.1112]
[1759712755901,0.4594,4505.0,4504.9,2.2198051]
[1759712756262,0.4594,4505.0,4504.8,2.2198411]
[1759712756462,0.5706,4504.9,4504.8,2.2198411]
[1759712757820,0.1112,4504.9,4504.8,2.2198411]
[1759712757979,0.1112,4504.9,4504.8,2.21985437]
[1759712758426,0.1112,4504.9,4504.8,2.22085437]
[1759712759184,0.002,4505.4,4504.9,2.2198051]
[1759712759386,0.002,4505.4,4505.3,6.09535082]
[1759712759785,0.002,4505.4,4505.3,6.56875082]
[1759712760633,0.002,4505.4,4505.3,8.96875082]
[1759712760819,0.002,4505.4,4505.3,10.15470846]
[1759712761626,0.002,4505.4,4505.3,6.27896565]
[1759712761829,0.002,4505.4,4505.3,5.80556565]
[1759712762117,0.002,4505.4,4505.3,3.40556565]
[1759712762420,0.002,4505.4,4505.3,7.28130846]
[1759712763105,0.002,4505.4,4505.3,3.40556565]
[1759712763306,1e-08,4505.9,4505.4,2.21955875]
[1759712763633,1e-08,4505.9,4505.6,4.61943705]
[1759712763782,1e-08,4505.9,4505.8,2.21936171]
[1759712764412,1e-08,4505.9,4505.8,2.66056171]
[1759712764749,1e-08,4505.9,4505.8,5.06056171]
[1759712764907,1e-08,4505.9,4505.8,6.0869694]
[1759712765112,1e-08,4505.9,4505.8,6.53036239]
[1759712765847,1e-08,4505.9,4505.8,16.62000282]
[1759712766450,1e-08,4505.9,4505.8,9.07036239]
[1759712766946,1e-08,4505.9,4505.8,3.2457694]
[1759712767145,1e-08,4505.9,4505.8,2.21936171]
[1759712767347,1e-08,4505.9,4505.8,2.24155532]
[1759712767748,1e-08,4505.9,4505.8,2.21936171]
[1759712768454,1e-08,4505.9,4505.8,4.75936171]
[1759712768615,1e-08,4505.9,4505.8,17.05660214]
[1759712769129,1e-08,4505.9,4505.8,17.69020214]
[1759712770233,1e-08,4506.9,4505.9,2.4]
[1759712770429,1e-08,4506.9,4506.6,2.21894546]
[1759712770628,1e-08,4506.9,4506.7,2.56218918]
[1759712770825,1e-08,4506.9,4506.8,4.61886926]
[1759712771042,1e-08,4506.9,4506.8,6.67778965]
[1759712771548,1e-08,4506.9,4506.8,8.14298965]
[1759712771724,1e-08,4506.9,4506.8,5.60298965]
[1759712772152,0.42920001,4506.9,4506.8,2.21886926]
[1759712773467,1e-08,4506.9,4506.8,2.21886926]
[1759712775375,1e-08,4506.9,4506.8,2.24105795]
[1759712776362,1e-08,4506.9,4506.8,2.21886926]
[1759712776683,0.00200001,4506.9,4506.8,2.21886926]
[1759712777174,0.43120001,4506.9,4506.8,2.21886926]
[1759712778261,0.43120001,4506.9,4506.7,0.1112]
[1759712778463,0.00200001,4506.9,4506.8,2.21886926]
[1759712779346,0.43120001,4506.9,4506.8,2.21886926]
[1759712779775,0.43120001,4506.9,4506.7,2.21891605]
[1759712780079,0.4292,4506.8,4506.7,2.21891849]
[1759712780280,0.4292,4506.8,4506.4,0.1112]
[1759712780455,0.4292,4506.8,4506.6,2.21896304]
[1759712780778,0.00200001,4506.9,4506.6,2.21896773]
[1759712780779,0.4292,4506.7,4506.6,2.21896773]
[1759712780982,0.5404,4506.7,4506.0,2.2192632]
[1759712781184,0.00200001,4506.9,4505.8,0.001]
[1759712781185,0.4292,4506.6,4505.8,0.001]
[1759712781477,0.1112,4506.1,4506.0,2.2192632]
[1759712781654,0.5404,4506.1,4506.0,2.2192632]
[1759712783788,0.5404,4506.1,4505.8,2.2203501]
[1759712784084,0.4292,4506.0,4505.9,2.21931162]
[1759712785182,0.1112,4506.1,4506.0,2.2192632]
[1759712786383,0.5404,4506.1,4506.0,2.2192632]
[1759712786590,0.5404,4506.1,4505.8,0.001]
[1759712786883,0.4292,4506.0,4505.8,0.001]
[1759712787084,0.4292,4506.0,4505.9,2.21926916]
[1759712788549,0.4292,4506.0,4505.8,0.001]
[1759712788784,0.4292,4505.9,4505.8,0.001]
[1759712788956,0.1112,4505.9,4505.8,0.001]
[1759712789354,0.5404,4505.9,4505.8,0.001]
[1759712789554,0.5404,4505.9,4505.8,2.22036171]
[1759712790404,0.5404,4505.9,4505.8,0.001]
[1759712790551,0.84824,4505.9,4505.8,2.22036171]
[1759712790754,0.5404,4505.9,4505.8,2.22036171]
[1759712792593,0.5404,4505.9,4505.8,0.001]
[1759712793964,0.5404,4505.9,4505.8,2.22036171]
[1759712793965,3.0784,4505.9,4505.8,2.22036171]
[1759712794607,0.1112,4505.9,4505.8,2.22036171]
[1759712795712,0.45,4506.5,4505.8,2.22036171]
[1759712795713,0.45,4506.5,4506.4,2.21906621]
[1759712795915,0.00200001,4506.9,4506.7,2.21888205]
[1759712796079,0.45,4506.8,4506.7,2.21888205]
[1759712796429,0.1112,4506.8,4506.7,2.21891849]
[1759712796722,0.1112,4506.8,4506.7,2.24110767]
[1759712797290,0.1112,4506.8,4506.7,2.21891849]
[1759712797495,0.00200001,4506.9,4506.8,2.21886926]
[1759712801118,0.00200001,4506.9,4506.8,2.24105795]
[1759712801288,0.00200001,4506.9,4506.8,2.66855795]
[1759712802621,0.00200001,4506.9,4506.8,2.21886926]
[1759712802798,0.00200001,4506.9,4506.8,2.66855795]
[1759712803117,0.00200001,4506.9,4506.8,3.1351169]
[1759712806216,0.00200001,4506.9,4506.8,2.7076169]
[1759712807820,0.00200001,4506.9,4506.8,2.21886926]
[1759712808223,0.45200001,4506.9,4506.8,2.21886926]
[1759712808522,0.45200001,4506.9,4505.9,2.4]
[1759712808689,0.45200001,4506.9,4506.1,2.21921395]
[1759712808896,0.45200001,4506.9,4506.8,2.21886926]
[1759712809465,0.45200001,4506.9,4505.9,2.21931245]
[1759712809608,0.45,4506.8,4506.5,2.21897269]
[1759712809815,0.45,4506.7,4505.8,0.001]
[1759712810139,0.45,4506.7,4506.6,2.21896773]
[1759712810541,0.45,4506.7,4505.8,0.001]
[1759712810728,0.45,4506.7,4506.4,2.21905963]
[1759712810922,0.45,4506.6,4506.3,2.21909031]
[1759712811125,0.45,4506.5,4506.4,2.21906621]
[1759712812546,0.5612,4506.5,4506.4,2.21906621]
[1759712813125,0.5612,4506.5,4505.8,0.1122]
[1759712813282,0.45,4506.5,4506.4,2.21906621]
[1759712813481,0.1112,4506.1,4505.8,0.001]
[1759712813783,0.45,4506.8,4505.8,0.001]
[1759712814073,0.1112,4506.1,4506.0,2.2192632]
[1759712814378,0.1112,4506.1,4506.0,2.24145583]
[1759712814881,0.1112,4506.1,4506.0,2.2192632]
[1759712816278,2.537,4506.7,4506.6,2.21894202]
[1759712816438,0.00200001,4506.9,4506.8,2.21886926]
[1759712818064,0.00200001,4506.9,4506.4,0.1112]
[1759712818065,0.45200001,4506.9,4506.4,0.1112]
[1759712818385,0.1112,4506.7,4506.1,2.21921395]
[1759712818889,0.1112,4506.7,4506.4,2.21904255]
[1759712819087,0.1112,4506.7,4506.6,2.21896773]
[1759712819252,0.00200001,4506.9,4506.8,2.21886926]
[1759712819463,0.56320001,4506.9,4506.8,2.21886926]
[1759712820478,0.11320001,4506.9,4506.8,2.21886926]
[1759712821050,0.00200001,4506.9,4506.8,2.68484165]
[1759712821384,0.012,4507.9,4507.8,2.21837703]
[1759712821545,0.1232,4507.9,4507.8,2.21837703]
[1759712821746,0.462,4507.9,4506.2,2.2191647]
[1759712821981,0.454,4507.9,4507.6,2.21845254]
[1759712822176,0.454,4507.9,4507.8,2.21837703]
[1759712822575,0.012,4507.9,4507.8,2.21837703]
[1759712824684,0.012,4507.9,4507.8,2.2405608]
[1759712825888,0.012,4507.9,4507.8,2.21837703]
[1759712826985,1e-08,4507.9,4507.8,3.12017841]
[1759712827352,0.44460001,4507.9,4507.8,2.21837703]
[1759712827747,1e-08,4507.9,4507.8,2.21837703]
[1759712828457,1e-08,4507.9,4507.8,2.2405608]
[1759712828667,1e-08,4507.9,4507.8,2.21837703]
[1759712829559,1e-08,4507.9,4507.8,2.2405608]
[1759712829886,1e-08,4507.9,4507.8,3.18795205]
[1759712831489,1e-08,4508.9,4507.8,4.00317502]
[1759712831692,1e-08,4508.9,4508.6,2.21796216]
[1759712831908,1e-08,4508.9,4508.8,2.32908502]
[1759712832211,1e-08,4508.9,4508.8,2.78378974]
[1759712832508,1e-08,4508.9,4508.8,3.23968974]
[1759712833508,1e-08,4508.9,4508.8,2.78378974]
[1759712833872,1e-08,4508.9,4508.8,3.23968974]
[1759712834078,1e-08,4508.9,4508.8,2.78378974]
[1759712834915,1e-08,4508.9,4508.8,3.23968974]
[1759712835088,1e-08,4508.9,4508.8,3.12848974]
[1759712835914,1e-08,4508.9,4508.8,5.52848974]
[1759712836416,1e-08,4508.9,4508.6,2.21796146]
[1759712836990,1e-08,4508.9,4508.2,2.535]
[1759712836991,1e-08,4508.9,4507.8,0.94739125]
[1759712837181,1e-08,4508.9,4508.6,2.21796146]
[1759712837380,1e-08,4508.9,4508.7,0.02217934]
[1759712837606,1e-08,4508.9,4508.8,2.21788502]
[1759712837818,1e-08,4508.9,4508.8,2.67378502]
[1759712838515,1e-08,4508.9,4508.8,2.21788502]
[1759712838713,1e-08,4508.9,4508.8,2.70705967]
[1759712838914,1e-08,4508.9,4508.8,2.72923852]
[1759712839451,1e-08,4508.9,4508.8,2.70705967]
[1759712839650,0.44460001,4508.9,4508.3,2.218131]
[1759712839850,1e-08,4508.9,4508.3,2.8559]
[1759712840051,1e-08,4508.9,4508.6,2.21796148]
[1759712840280,1e-08,4508.9,4508.7,0.02217934]
[1759712840555,1e-08,4508.9,4508.8,2.4418991]
[1759712840865,1e-08,4508.9,4508.8,2.8977991]
[1759712841939,1e-08,4508.9,4508.8,2.4418991]
[1759712843515,1e-08,4508.9,4508.8,2.8977991]
[1759712843828,1e-08,4508.9,4508.8,2.4418991]
[1759712844440,1e-08,4508.9,4508.8,2.8977991]
[1759712845126,1e-08,4508.9,4508.8,3.03117795]
[1759712845528,1e-08,4508.9,4508.8,3.0089991]
[1759712845920,1e-08,4508.9,4508.8,2.5530991]
[1759712846563,1e-08,4508.9,4508.8,3.0089991]
[1759712846767,1e-08,4508.9,4508.8,3.03217795]
[1759712846982,0.00200001,4508.9,4508.8,3.03217795]
[1759712847480,0.00200001,4508.9,4508.8,3.0099991]
[1759712847643,0.00200001,4508.9,4508.8,3.03217795]
[1759712848343,0.00200001,4508.9,4508.8,8.5775991]
[1759712848944,0.00200001,4508.9,4508.8,7.4880991]
[1759712849441,0.00200001,4508.9,4508.8,7.9439991]
[1759712854457,0.00200001,4508.9,4508.8,8.5775991]
[1759712855089,0.00200001,4508.9,4508.8,8.81576495]
[1759712855287,0.00200001,4508.9,4508.8,4.61888502]
[1759712857051,1e-08,4509.3,4508.8,4.61888502]
[1759712857380,0.01,4509.9,4509.8,2.21739323]
[1759712859283,0.4433,4509.9,4509.8,2.21739323]
[1759712859483,0.4433,4509.9,4508.8,2.401]
[1759712859785,0.4333,4509.8,4508.8,2.401]
[1759712859947,0.4333,4509.7,4508.8,0.001]
[1759712860566,0.4333,4509.7,4509.2,2.21768333]
[1759712860769,0.4333,4509.6,4508.8,0.001]
[1759712860952,2.533,4509.5,4508.8,0.001]
[1759712861150,0.29663,4509.4,4508.8,0.001]
[1759712861376,0.72993,4509.4,4508.9,2.21779011]
[1759712861573,0.4333,4509.3,4508.8,0.001]
[1759712861980,0.20521737,4509.2,4508.8,0.001]
[1759712862357,0.4333,4509.1,4508.8,0.001]
[1759712862583,0.20521737,4509.0,4508.8,0.001]
[1759712863095,2.9840283,4508.9,4508.8,0.001]
[1759712863262,3.32905574,4508.9,4508.8,0.001]
[1759712863457,3.96265574,4508.9,4508.8,0.001]